[Event "*** Titled Tuesday Blitz"]
[Site "Chess.com"]
[Date "2020.05.12"]
[Round "2"]
[White "Boninknights"]
[Black "FelixJoseYnojosa"]
[Result "1/2-1/2"]
[WhiteElo "2242"]
[BlackElo "2598"]
[TimeControl "180+1"]
[EndTime "10:18:59 PDT"]
[Termination "Game drawn by repetition"]

1. d4 {[%clk 0:02:59.3]} 1... Nf6 {[%clk 0:02:58.2]} 2. Nf3 {[%clk 0:02:58.2]}
2... e6 {[%clk 0:02:58.2]} 3. c4 {[%clk 0:02:57.5]} 3... d5 {[%clk 0:02:57.6]}
4. Nc3 {[%clk 0:02:56.3]} 4... c6 {[%clk 0:02:58.1]} 5. Qb3 {[%clk 0:02:54.8]}
5... Bd6 {[%clk 0:02:54.2]} 6. Bg5 {[%clk 0:02:53.6]} 6... h6 {[%clk 0:02:53.2]}
7. Bh4 {[%clk 0:02:51.9]} 7... O-O {[%clk 0:02:53.2]} 8. e3 {[%clk 0:02:50.6]}
8... Nbd7 {[%clk 0:02:45.5]} 9. Rc1 {[%clk 0:02:48.1]} 9... a6 {[%clk
0:02:44.7]} 10. Bd3 {[%clk 0:02:45.1]} 10... dxc4 {[%clk 0:02:44.9]} 11. Qxc4
{[%clk 0:02:44.3]} 11... Qe7 {[%clk 0:02:41.5]} 12. O-O {[%clk 0:02:40.5]} 12...
b5 {[%clk 0:02:41.3]} 13. Qxc6 {[%clk 0:02:36.3]} 13... Ra7 {[%clk 0:02:33]} 14.
Ne4 {[%clk 0:02:28.8]} 14... Bb8 {[%clk 0:02:18]} 15. Nxf6+ {[%clk 0:02:19]}
15... gxf6 {[%clk 0:02:18.1]} 16. Qxc8 {[%clk 0:02:13.4]} 16... Rxc8 {[%clk
0:02:17]} 17. Rxc8+ {[%clk 0:02:11.7]} 17... Kg7 {[%clk 0:02:09.1]} 18. Rfc1
{[%clk 0:02:09.8]} 18... Bd6 {[%clk 0:02:01.3]} 19. e4 {[%clk 0:02:05.9]} 19...
e5 {[%clk 0:01:59.2]} 20. Bg3 {[%clk 0:02:01.3]} 20... Nb6 {[%clk 0:01:48.5]}
21. R8c6 {[%clk 0:01:54]} 21... Rc7 {[%clk 0:01:24.7]} 22. Nh4 {[%clk
0:01:50.2]} 22... Qd7 {[%clk 0:01:25.1]} 23. Nf5+ {[%clk 0:01:42.5]} 23... Kh7
{[%clk 0:01:17.6]} 24. d5 {[%clk 0:01:32.4]} 24... Rxc6 {[%clk 0:00:59.6]} 25.
Rxc6 {[%clk 0:01:27.3]} 25... Nc8 {[%clk 0:00:47.8]} 26. Rxa6 {[%clk 0:01:16.6]}
26... Kg6 {[%clk 0:00:36.3]} 27. h4 {[%clk 0:01:13.3]} 27... h5 {[%clk
0:00:36.5]} 28. Rc6 {[%clk 0:01:08.9]} 28... Be7 {[%clk 0:00:17]} 29. Bxe5
{[%clk 0:01:05.5]} 29... Bd8 {[%clk 0:00:06.5]} 30. Bc3 {[%clk 0:00:59.4]} 30...
Na7 {[%clk 0:00:06.7]} 31. e5 {[%clk 0:00:50.3]} 31... Nxc6 {[%clk 0:00:05.8]}
32. Ne7+ {[%clk 0:00:44.6]} 32... Kg7 {[%clk 0:00:03.7]} 33. Nxc6 {[%clk
0:00:40.3]} 33... Qxd5 {[%clk 0:00:03.7]} 34. Nxd8 {[%clk 0:00:34]} 34... Qxd8
{[%clk 0:00:04.4]} 35. exf6+ {[%clk 0:00:32.2]} 35... Kg8 {[%clk 0:00:05.1]} 36.
Bxb5 {[%clk 0:00:31.1]} 36... Qd1+ {[%clk 0:00:03.4]} 37. Kh2 {[%clk 0:00:27.2]}
37... Qg4 {[%clk 0:00:04.1]} 38. g3 {[%clk 0:00:25.7]} 38... Qf5 {[%clk
0:00:04.3]} 39. Bf1 {[%clk 0:00:18.5]} 39... Qxf2+ {[%clk 0:00:04.6]} 40. Bg2
{[%clk 0:00:17.6]} 40... Kh7 {[%clk 0:00:05.1]} 41. a4 {[%clk 0:00:16.4]} 41...
Kg6 {[%clk 0:00:05.6]} 42. a5 {[%clk 0:00:13.6]} 42... Qe2 {[%clk 0:00:06]} 43.
Kh3 {[%clk 0:00:11]} 43... Kf5 {[%clk 0:00:03.9]} 44. Bb7 {[%clk 0:00:08]} 44...
Qg4+ {[%clk 0:00:04.3]} 45. Kh2 {[%clk 0:00:06.6]} 45... Qe2+ {[%clk 0:00:04.9]}
46. Kh3 {[%clk 0:00:05.8]} 46... Qg4+ {[%clk 0:00:03.9]} 47. Kh2 {[%clk
0:00:04.9]} 47... Qe2+ {[%clk 0:00:04]} 48. Kh3 {[%clk 0:00:04.4]} 1/2-1/2

[Event "*** Titled Tuesday Blitz"]
[Site "Chess.com"]
[Date "2020.05.12"]
[Round "2"]
[White "RitvarsReimanis"]
[Black "Evgeny81"]
[Result "1-0"]
[WhiteElo "2494"]
[BlackElo "2700"]
[TimeControl "180+1"]
[EndTime "10:19:00 PDT"]
[Termination "RitvarsReimanis won on time"]

1. d4 {[%clk 0:02:59.3]} 1... e6 {[%clk 0:03:00.9]} 2. c4 {[%clk 0:02:53.9]}
2... Nf6 {[%clk 0:02:59.7]} 3. Nf3 {[%clk 0:02:51.7]} 3... Bb4+ {[%clk
0:02:59.7]} 4. Bd2 {[%clk 0:02:51.7]} 4... Qe7 {[%clk 0:02:59]} 5. g3 {[%clk
0:02:50.8]} 5... Bxd2+ {[%clk 0:02:56.9]} 6. Nbxd2 {[%clk 0:02:50.5]} 6... d6
{[%clk 0:02:52]} 7. e4 {[%clk 0:02:49.9]} 7... e5 {[%clk 0:02:51.1]} 8. Bg2
{[%clk 0:02:42.6]} 8... Bg4 {[%clk 0:02:43.6]} 9. d5 {[%clk 0:02:21.6]} 9... a5
{[%clk 0:02:40.1]} 10. O-O {[%clk 0:01:51.5]} 10... O-O {[%clk 0:02:39.6]} 11.
h3 {[%clk 0:01:43.5]} 11... Bxf3 {[%clk 0:02:33.6]} 12. Bxf3 {[%clk 0:01:38.3]}
12... Na6 {[%clk 0:02:34.5]} 13. Nb3 {[%clk 0:01:35.7]} 13... Nd7 {[%clk
0:02:28.7]} 14. Nc1 {[%clk 0:01:31.5]} 14... Nac5 {[%clk 0:02:25.8]} 15. Qe2
{[%clk 0:01:27.3]} 15... g6 {[%clk 0:02:22.4]} 16. g4 {[%clk 0:01:19.7]} 16...
f5 {[%clk 0:02:18.9]} 17. gxf5 {[%clk 0:01:14.7]} 17... gxf5 {[%clk 0:02:18.9]}
18. exf5 {[%clk 0:01:10.7]} 18... e4 {[%clk 0:02:15.5]} 19. Bg4 {[%clk
0:01:08.1]} 19... Ne5 {[%clk 0:02:13.3]} 20. Kh1 {[%clk 0:01:00.7]} 20... Kh8
{[%clk 0:02:09.3]} 21. f4 {[%clk 0:00:54.1]} 21... exf3 {[%clk 0:02:05.9]} 22.
Rxf3 {[%clk 0:00:54]} 22... Qh4 {[%clk 0:02:01.4]} 23. Re3 {[%clk 0:00:49.6]}
23... Rae8 {[%clk 0:01:41.4]} 24. Qe1 {[%clk 0:00:34.2]} 24... Qxe1+ {[%clk
0:01:11.1]} 25. Rxe1 {[%clk 0:00:33.6]} 25... Nxc4 {[%clk 0:01:12]} 26. Nb3
{[%clk 0:00:30.3]} 26... Nd3 {[%clk 0:00:57.2]} 27. Rxe8 {[%clk 0:00:27.8]}
27... Rxe8 {[%clk 0:00:58.1]} 28. Nd4 {[%clk 0:00:25.8]} 28... Re4 {[%clk
0:00:43.7]} 29. Ne6 {[%clk 0:00:22.7]} 29... Nce5 {[%clk 0:00:25.7]} 30. Kg2
{[%clk 0:00:14.6]} 30... Nxg4 {[%clk 0:00:21.9]} 31. hxg4 {[%clk 0:00:15]} 31...
Rxg4+ {[%clk 0:00:22.5]} 32. Kf3 {[%clk 0:00:15]} 32... Ne5+ {[%clk 0:00:22.7]}
33. Ke3 {[%clk 0:00:15.5]} 33... Kg8 {[%clk 0:00:14.8]} 34. Rc1 {[%clk 0:00:14]}
34... c6 {[%clk 0:00:13.1]} 35. dxc6 {[%clk 0:00:12.4]} 35... bxc6 {[%clk
0:00:14]} 36. Rd1 {[%clk 0:00:10.3]} 36... Kf7 {[%clk 0:00:11.9]} 37. b3 {[%clk
0:00:09.1]} 37... Ke7 {[%clk 0:00:09.8]} 38. Rh1 {[%clk 0:00:07.4]} 38... Kf6
{[%clk 0:00:04.6]} 39. Rxh7 {[%clk 0:00:03.9]} 39... Rg3+ {[%clk 0:00:05.1]} 40.
Ke4 {[%clk 0:00:03.2]} 40... d5+ {[%clk 0:00:04.1]} 41. Kd4 {[%clk 0:00:03.7]}
41... Rd3+ {[%clk 0:00:03.5]} 42. Kc5 {[%clk 0:00:04.1]} 42... Kxf5 {[%clk
0:00:04.1]} 43. Nd4+ {[%clk 0:00:04.5]} 43... Ke4 {[%clk 0:00:04.4]} 44. Ne6
{[%clk 0:00:05]} 44... Rc3+ {[%clk 0:00:03.8]} 45. Kd6 {[%clk 0:00:05.9]} 45...
Nf3 {[%clk 0:00:02.3]} 46. Nc5+ {[%clk 0:00:05.7]} 46... Ke3 {[%clk 0:00:02.7]}
47. Kxc6 {[%clk 0:00:06.1]} 47... d4 {[%clk 0:00:03.2]} 48. Kb5 {[%clk
0:00:06.3]} 48... d3 {[%clk 0:00:02.5]} 49. Re7+ {[%clk 0:00:06.2]} 49... Kf4
{[%clk 0:00:01.1]} 50. Rf7+ {[%clk 0:00:05.1]} 1-0

[Event "*** Titled Tuesday Blitz"]
[Site "Chess.com"]
[Date "2020.05.12"]
[Round "2"]
[White "Saloni1299"]
[Black "Norival"]
[Result "0-1"]
[WhiteElo "2312"]
[BlackElo "2637"]
[TimeControl "180+1"]
[EndTime "10:19:04 PDT"]
[Termination "Norival won by resignation"]

1. e4 {[%clk 0:03:00.9]} 1... e5 {[%clk 0:00:52.6]} 2. Nf3 {[%clk 0:02:58.9]}
2... Nc6 {[%clk 0:00:52]} 3. Bb5 {[%clk 0:02:58.7]} 3... a6 {[%clk 0:00:47.3]}
4. Ba4 {[%clk 0:02:58.8]} 4... Nge7 {[%clk 0:00:46.5]} 5. c3 {[%clk 0:02:58.1]}
5... d6 {[%clk 0:00:46.2]} 6. d4 {[%clk 0:02:56.3]} 6... Bd7 {[%clk 0:00:46.6]}
7. O-O {[%clk 0:02:55.5]} 7... g6 {[%clk 0:00:46.8]} 8. Be3 {[%clk 0:02:46.9]}
8... Bg7 {[%clk 0:00:47]} 9. d5 {[%clk 0:02:47]} 9... Nb8 {[%clk 0:00:46.8]} 10.
Bc2 {[%clk 0:02:47.5]} 10... O-O {[%clk 0:00:45.8]} 11. Qd2 {[%clk 0:02:47.6]}
11... Bg4 {[%clk 0:00:42.4]} 12. Ne1 {[%clk 0:02:45.5]} 12... Bc8 {[%clk
0:00:41.8]} 13. Bh6 {[%clk 0:02:43.3]} 13... f5 {[%clk 0:00:41.5]} 14. Bxg7
{[%clk 0:02:39.4]} 14... Kxg7 {[%clk 0:00:42.4]} 15. f3 {[%clk 0:02:39.6]} 15...
Nd7 {[%clk 0:00:41.9]} 16. Qe2 {[%clk 0:02:32.9]} 16... Nf6 {[%clk 0:00:41.3]}
17. Nd2 {[%clk 0:02:32.7]} 17... g5 {[%clk 0:00:37.2]} 18. exf5 {[%clk
0:02:30.7]} 18... Nxf5 {[%clk 0:00:36.5]} 19. c4 {[%clk 0:02:24.8]} 19... a5
{[%clk 0:00:34.3]} 20. Ne4 {[%clk 0:02:21.6]} 20... h6 {[%clk 0:00:34]} 21. Nd3
{[%clk 0:02:18]} 21... Nd4 {[%clk 0:00:32.1]} 22. Qd2 {[%clk 0:02:17.9]} 22...
b6 {[%clk 0:00:27.6]} 23. Ndf2 {[%clk 0:02:14.1]} 23... Nh5 {[%clk 0:00:25.5]}
24. Kh1 {[%clk 0:01:54.3]} 24... Bd7 {[%clk 0:00:25.5]} 25. Rae1 {[%clk
0:01:50.3]} 25... Qe7 {[%clk 0:00:25.7]} 26. Bb1 {[%clk 0:01:50.1]} 26... Rae8
{[%clk 0:00:25.5]} 27. Nd1 {[%clk 0:01:28]} 27... Kg8 {[%clk 0:00:24.3]} 28. Qc3
{[%clk 0:01:22.5]} 28... Qg7 {[%clk 0:00:24.4]} 29. a3 {[%clk 0:01:20.4]} 29...
a4 {[%clk 0:00:24.2]} 30. Qd2 {[%clk 0:01:17.9]} 30... Nf4 {[%clk 0:00:24.1]}
31. Ndc3 {[%clk 0:01:17.5]} 31... Re7 {[%clk 0:00:23.2]} 32. Nb5 {[%clk
0:01:17.7]} 32... Nxb5 {[%clk 0:00:21.3]} 33. cxb5 {[%clk 0:01:17.2]} 33... Bxb5
{[%clk 0:00:22.2]} 34. Rf2 {[%clk 0:01:17.5]} 34... Bc4 {[%clk 0:00:20.9]} 35.
Nc3 {[%clk 0:01:16.5]} 35... b5 {[%clk 0:00:21.3]} 36. Be4 {[%clk 0:01:16.3]}
36... h5 {[%clk 0:00:20.9]} 37. Nd1 {[%clk 0:01:16]} 37... g4 {[%clk 0:00:20.9]}
38. Ne3 {[%clk 0:01:15.5]} 38... Ref7 {[%clk 0:00:21]} 39. Nxc4 {[%clk
0:01:08.9]} 39... bxc4 {[%clk 0:00:21.2]} 40. Qc3 {[%clk 0:01:03.4]} 40... g3
{[%clk 0:00:20.6]} 41. Rd2 {[%clk 0:00:57.9]} 41... gxh2 {[%clk 0:00:20.2]} 42.
Qxc4 {[%clk 0:00:57.1]} 42... h4 {[%clk 0:00:20.7]} 43. Qxa4 {[%clk 0:00:53.1]}
43... Qg3 {[%clk 0:00:20.7]} 44. Rc1 {[%clk 0:00:28.1]} 44... Rg7 {[%clk
0:00:20.6]} 45. Qc2 {[%clk 0:00:25.8]} 45... h3 {[%clk 0:00:20.9]} 46. Bg6
{[%clk 0:00:13.5]} 46... Rxg6 {[%clk 0:00:20.6]} 47. Qxg6+ {[%clk 0:00:08.8]}
47... Qxg6 {[%clk 0:00:19.6]} 48. g4 {[%clk 0:00:09.1]} 48... Qf6 {[%clk
0:00:16.4]} 49. Kxh2 {[%clk 0:00:08.5]} 49... Ng6 {[%clk 0:00:16.5]} 50. Rxc7
{[%clk 0:00:07.2]} 50... Qxf3 {[%clk 0:00:16.3]} 51. Rc3 {[%clk 0:00:05.1]}
51... Qf4+ {[%clk 0:00:16]} 52. Kxh3 {[%clk 0:00:05.4]} 52... Qxd2 {[%clk
0:00:16.9]} 53. Rg3 {[%clk 0:00:05.1]} 53... Qh6+ {[%clk 0:00:17.5]} 54. Kg2
{[%clk 0:00:05.2]} 54... Nf4+ {[%clk 0:00:18.1]} 55. Kg1 {[%clk 0:00:05.6]}
55... Qg5 {[%clk 0:00:19]} 0-1

[Event "*** Titled Tuesday Blitz"]
[Site "Chess.com"]
[Date "2020.05.12"]
[Round "2"]
[White "woodhy"]
[Black "Susal_De_Silva"]
[Result "1-0"]
[WhiteElo "2461"]
[BlackElo "2234"]
[TimeControl "180+1"]
[EndTime "10:19:07 PDT"]
[Termination "woodhy won by resignation"]

1. e4 {[%clk 0:03:00.9]} 1... e5 {[%clk 0:02:59.8]} 2. Nf3 {[%clk 0:03:01.1]}
2... Nc6 {[%clk 0:03:00.4]} 3. Bb5 {[%clk 0:03:01.1]} 3... a6 {[%clk 0:03:00.2]}
4. Bxc6 {[%clk 0:03:01.5]} 4... dxc6 {[%clk 0:03:01.1]} 5. O-O {[%clk
0:03:02.2]} 5... Bg4 {[%clk 0:03:00.2]} 6. h3 {[%clk 0:03:02.5]} 6... h5 {[%clk
0:03:00.9]} 7. d3 {[%clk 0:03:02.1]} 7... Qf6 {[%clk 0:02:58.7]} 8. Be3 {[%clk
0:03:02.2]} 8... Bd6 {[%clk 0:02:58.3]} 9. Nbd2 {[%clk 0:03:01.1]} 9... Ne7
{[%clk 0:02:53.4]} 10. hxg4 {[%clk 0:02:54.2]} 10... hxg4 {[%clk 0:02:53.3]} 11.
g3 {[%clk 0:02:54.5]} 11... gxf3 {[%clk 0:02:52.9]} 12. Qxf3 {[%clk 0:02:55.4]}
12... Qxf3 {[%clk 0:02:49.7]} 13. Nxf3 {[%clk 0:02:56.3]} 13... O-O-O {[%clk
0:02:49.9]} 14. Kg2 {[%clk 0:02:56.8]} 14... g6 {[%clk 0:02:34.3]} 15. Rh1
{[%clk 0:02:53.6]} 15... f5 {[%clk 0:02:34.5]} 16. Ng5 {[%clk 0:02:50.4]} 16...
f4 {[%clk 0:02:09.2]} 17. gxf4 {[%clk 0:02:45.9]} 17... exf4 {[%clk 0:02:08.9]}
18. Bd4 {[%clk 0:02:44.5]} 18... Rh5 {[%clk 0:02:02.1]} 19. Ne6 {[%clk
0:02:29.7]} 19... Rg8 {[%clk 0:01:57.6]} 20. Rxh5 {[%clk 0:02:07.2]} 20... gxh5+
{[%clk 0:01:58.5]} 21. Kf3 {[%clk 0:02:07.2]} 21... Kd7 {[%clk 0:01:22.2]} 22.
Ng7 {[%clk 0:01:38.9]} 22... h4 {[%clk 0:01:09.8]} 23. Rh1 {[%clk 0:01:35.8]}
23... Ng6 {[%clk 0:01:09.8]} 24. Nf5 {[%clk 0:01:33.9]} 24... c5 {[%clk
0:01:00.7]} 25. Bc3 {[%clk 0:01:31.3]} 25... Be7 {[%clk 0:00:54.6]} 26. Nh6
{[%clk 0:01:12.3]} 26... Rf8 {[%clk 0:00:50]} 27. Ng4 {[%clk 0:00:56.2]} 27...
b5 {[%clk 0:00:43.7]} 28. b3 {[%clk 0:00:52.6]} 28... b4 {[%clk 0:00:42.6]} 29.
Bb2 {[%clk 0:00:31]} 29... Ke6 {[%clk 0:00:41.6]} 30. Nh6 {[%clk 0:00:27.5]}
30... Bg5 {[%clk 0:00:35.6]} 31. Rg1 {[%clk 0:00:23.5]} 31... Ne5+ {[%clk
0:00:29.2]} 32. Bxe5 {[%clk 0:00:22.7]} 32... Bxh6 {[%clk 0:00:29.3]} 33. Rg6+
{[%clk 0:00:19.7]} 33... Kxe5 {[%clk 0:00:29]} 34. Rxh6 {[%clk 0:00:20.1]} 34...
Kd4 {[%clk 0:00:29.6]} 35. Rh5 {[%clk 0:00:19.3]} 35... h3 {[%clk 0:00:27]} 36.
Rd5+ {[%clk 0:00:17.4]} 36... Kc3 {[%clk 0:00:26.1]} 37. Rxc5+ {[%clk
0:00:18.3]} 37... Kd2 {[%clk 0:00:24.4]} 38. Rh5 {[%clk 0:00:16.1]} 38... Kxc2
{[%clk 0:00:24.6]} 39. d4 {[%clk 0:00:16.6]} 39... Kb2 {[%clk 0:00:23.8]} 40.
Rxh3 {[%clk 0:00:16.3]} 40... Kxa2 {[%clk 0:00:24.2]} 41. e5 {[%clk 0:00:16.8]}
41... a5 {[%clk 0:00:23.5]} 42. Ke4 {[%clk 0:00:16.5]} 42... a4 {[%clk
0:00:20.6]} 43. bxa4 {[%clk 0:00:17.4]} 43... b3 {[%clk 0:00:21.1]} 44. e6
{[%clk 0:00:17.5]} 44... b2 {[%clk 0:00:18.6]} 45. Rh1 {[%clk 0:00:17.5]} 45...
b1=Q+ {[%clk 0:00:18.7]} 46. Rxb1 {[%clk 0:00:16.9]} 46... Kxb1 {[%clk
0:00:19.6]} 47. Ke5 {[%clk 0:00:17.1]} 47... Kc2 {[%clk 0:00:19.7]} 48. e7
{[%clk 0:00:17.1]} 48... Re8 {[%clk 0:00:19.9]} 49. Ke6 {[%clk 0:00:18]} 49...
Kd3 {[%clk 0:00:19.6]} 50. a5 {[%clk 0:00:18.3]} 50... Ke2 {[%clk 0:00:18.6]}
51. a6 {[%clk 0:00:17.6]} 51... Kxf2 {[%clk 0:00:18.9]} 52. a7 {[%clk
0:00:18.5]} 52... c5 {[%clk 0:00:14.5]} 53. dxc5 {[%clk 0:00:16.5]} 53... Ra8
{[%clk 0:00:14.9]} 54. c6 {[%clk 0:00:15.4]} 54... f3 {[%clk 0:00:14.9]} 55. Kd7
{[%clk 0:00:15.5]} 55... Ke1 {[%clk 0:00:13]} 56. e8=Q+ {[%clk 0:00:15]} 56...
Rxe8 {[%clk 0:00:12.8]} 57. Kxe8 {[%clk 0:00:15.2]} 57... f2 {[%clk 0:00:13.7]}
58. a8=Q {[%clk 0:00:15.6]} 58... f1=Q {[%clk 0:00:14.6]} 59. Qa1+ {[%clk
0:00:15.4]} 1-0

[Event "*** Titled Tuesday Blitz"]
[Site "Chess.com"]
[Date "2020.05.12"]
[Round "2"]
[White "Diego_FloresQ"]
[Black "nonsopolo1"]
[Result "1-0"]
[WhiteElo "2426"]
[BlackElo "2173"]
[TimeControl "180+1"]
[EndTime "10:19:07 PDT"]
[Termination "Diego_FloresQ won on time"]

1. e4 {[%clk 0:03:00.9]} 1... c5 {[%clk 0:02:59.2]} 2. Nf3 {[%clk 0:02:59.3]}
2... Nc6 {[%clk 0:02:59.3]} 3. d4 {[%clk 0:02:58.1]} 3... cxd4 {[%clk
0:02:59.2]} 4. Nxd4 {[%clk 0:02:59]} 4... g6 {[%clk 0:02:59.4]} 5. c4 {[%clk
0:02:58.3]} 5... Bg7 {[%clk 0:02:59.5]} 6. Be3 {[%clk 0:02:57.7]} 6... Nf6
{[%clk 0:02:59.5]} 7. Nc3 {[%clk 0:02:57.5]} 7... O-O {[%clk 0:02:59.5]} 8. Be2
{[%clk 0:02:57.1]} 8... d6 {[%clk 0:02:58.9]} 9. O-O {[%clk 0:02:48.3]} 9... Bd7
{[%clk 0:02:58.8]} 10. Qd2 {[%clk 0:02:38.2]} 10... Nxd4 {[%clk 0:02:57]} 11.
Bxd4 {[%clk 0:02:38.1]} 11... Bc6 {[%clk 0:02:57]} 12. f3 {[%clk 0:02:38.7]}
12... a5 {[%clk 0:02:56.9]} 13. Be3 {[%clk 0:02:37.5]} 13... Nd7 {[%clk
0:02:55.4]} 14. Rab1 {[%clk 0:02:37.6]} 14... Nc5 {[%clk 0:02:51.6]} 15. b3
{[%clk 0:02:35.9]} 15... b6 {[%clk 0:02:50.7]} 16. a3 {[%clk 0:02:29.7]} 16...
a4 {[%clk 0:02:29.3]} 17. b4 {[%clk 0:02:29.8]} 17... Nb3 {[%clk 0:02:29]} 18.
Qd3 {[%clk 0:02:22.5]} 18... e5 {[%clk 0:01:46.5]} 19. Rfd1 {[%clk 0:02:14.9]}
19... Nd4 {[%clk 0:01:45.8]} 20. Bf1 {[%clk 0:01:54.8]} 20... f5 {[%clk
0:01:18.4]} 21. exf5 {[%clk 0:01:34]} 21... Nxf5 {[%clk 0:01:11.7]} 22. Bf2
{[%clk 0:01:25.6]} 22... Qg5 {[%clk 0:01:02.7]} 23. Ne4 {[%clk 0:01:18]} 23...
Bxe4 {[%clk 0:00:30.3]} 24. Qxe4 {[%clk 0:01:18.9]} 24... Rab8 {[%clk
0:00:23.3]} 25. Kh1 {[%clk 0:01:17.3]} 25... Rfd8 {[%clk 0:00:19.2]} 26. Rd5
{[%clk 0:01:01.9]} 26... Qf6 {[%clk 0:00:17]} 27. Rbd1 {[%clk 0:00:59.7]} 27...
Nd4 {[%clk 0:00:16.6]} 28. f4 {[%clk 0:00:53.7]} 28... Qe7 {[%clk 0:00:12.4]}
29. fxe5 {[%clk 0:00:50.8]} 29... Nf5 {[%clk 0:00:09.3]} 30. e6 {[%clk
0:00:45.1]} 30... Re8 {[%clk 0:00:08.8]} 31. R5d3 {[%clk 0:00:43.2]} 31... Qxe6
{[%clk 0:00:07.5]} 32. Qxe6+ {[%clk 0:00:43.6]} 32... Rxe6 {[%clk 0:00:08.4]}
33. Rf3 {[%clk 0:00:41.4]} 33... h5 {[%clk 0:00:07.7]} 34. c5 {[%clk 0:00:41.4]}
34... bxc5 {[%clk 0:00:06.6]} 35. Bc4 {[%clk 0:00:41.8]} 35... d5 {[%clk
0:00:06.5]} 36. Bxd5 {[%clk 0:00:41.9]} 36... Kf7 {[%clk 0:00:06.7]} 37. Re1
{[%clk 0:00:40.7]} 37... Re8 {[%clk 0:00:06.4]} 38. Bxc5 {[%clk 0:00:39.8]}
38... Kf6 {[%clk 0:00:06.1]} 39. Bd4+ {[%clk 0:00:36.5]} 39... Kg5 {[%clk
0:00:06.1]} 40. Rxe6 {[%clk 0:00:34.9]} 40... Rxe6 {[%clk 0:00:05.9]} 41. Bxe6
{[%clk 0:00:35.8]} 41... Nxd4 {[%clk 0:00:06.1]} 42. Rf7 {[%clk 0:00:32.4]}
42... Nxe6 {[%clk 0:00:05.5]} 43. b5 {[%clk 0:00:32.9]} 43... Bd4 {[%clk
0:00:04.1]} 44. Re7 {[%clk 0:00:32]} 44... Kf6 {[%clk 0:00:02.3]} 45. Rd7 {[%clk
0:00:32.5]} 45... Ke5 {[%clk 0:00:02.2]} 46. g3 {[%clk 0:00:31.1]} 46... g5
{[%clk 0:00:02.3]} 47. Kg2 {[%clk 0:00:31]} 47... Nc5 {[%clk 0:00:02.5]} 48. Rh7
{[%clk 0:00:29.7]} 48... h4 {[%clk 0:00:02.7]} 49. gxh4 {[%clk 0:00:28.9]} 49...
gxh4 {[%clk 0:00:03.3]} 50. Rxh4 {[%clk 0:00:29.8]} 50... Kd5 {[%clk 0:00:03.6]}
51. b6 {[%clk 0:00:26.7]} 51... Bb2 {[%clk 0:00:03.7]} 52. Rb4 {[%clk
0:00:24.9]} 52... Bxa3 {[%clk 0:00:03.6]} 53. b7 {[%clk 0:00:25.5]} 1-0

[Event "*** Titled Tuesday Blitz"]
[Site "Chess.com"]
[Date "2020.05.12"]
[Round "2"]
[White "TigrVShlyape"]
[Black "michaelk123"]
[Result "1-0"]
[WhiteElo "2831"]
[BlackElo "2533"]
[TimeControl "180+1"]
[EndTime "10:19:08 PDT"]
[Termination "TigrVShlyape won by resignation"]

1. d4 {[%clk 0:03:00.9]} 1... Nf6 {[%clk 0:02:59.2]} 2. Nf3 {[%clk 0:03:01.4]}
2... e6 {[%clk 0:02:58.9]} 3. Bf4 {[%clk 0:03:01.8]} 3... b6 {[%clk 0:02:57]} 4.
e3 {[%clk 0:03:02.1]} 4... Bb7 {[%clk 0:02:57.5]} 5. Nbd2 {[%clk 0:03:00.7]}
5... g6 {[%clk 0:02:57.4]} 6. a4 {[%clk 0:02:59.6]} 6... a5 {[%clk 0:02:53.4]}
7. h3 {[%clk 0:02:59.1]} 7... Bg7 {[%clk 0:02:53.6]} 8. Bb5 {[%clk 0:02:58.4]}
8... O-O {[%clk 0:02:53]} 9. O-O {[%clk 0:02:58.5]} 9... d6 {[%clk 0:02:48.7]}
10. c3 {[%clk 0:02:58.1]} 10... Nbd7 {[%clk 0:02:48.2]} 11. Re1 {[%clk
0:02:56.5]} 11... Qe7 {[%clk 0:02:44.1]} 12. e4 {[%clk 0:02:56.5]} 12... e5
{[%clk 0:02:44.2]} 13. Bg5 {[%clk 0:02:54.2]} 13... h6 {[%clk 0:02:41.2]} 14.
Bh4 {[%clk 0:02:53.8]} 14... Rfd8 {[%clk 0:02:27.6]} 15. Qc2 {[%clk 0:02:51.7]}
15... Nf8 {[%clk 0:02:16.6]} 16. Rad1 {[%clk 0:02:36.2]} 16... g5 {[%clk
0:02:16.3]} 17. Bg3 {[%clk 0:02:34.9]} 17... Ng6 {[%clk 0:02:16.2]} 18. dxe5
{[%clk 0:02:30.6]} 18... dxe5 {[%clk 0:02:15.7]} 19. Bf1 {[%clk 0:02:07]} 19...
Rd7 {[%clk 0:02:08.5]} 20. Bb5 {[%clk 0:02:02.3]} 20... Rdd8 {[%clk 0:02:08.1]}
21. Nh2 {[%clk 0:01:47.6]} 21... Nh5 {[%clk 0:01:53.6]} 22. Ng4 {[%clk
0:01:42.5]} 22... Nxg3 {[%clk 0:01:45.8]} 23. fxg3 {[%clk 0:01:42.1]} 23... Bc8
{[%clk 0:01:15]} 24. Ne3 {[%clk 0:01:38.8]} 24... Be6 {[%clk 0:01:14.3]} 25. Bc4
{[%clk 0:01:36.1]} 25... Rd7 {[%clk 0:01:08.8]} 26. Bxe6 {[%clk 0:01:23.2]}
26... Qxe6 {[%clk 0:01:07.4]} 27. Ndf1 {[%clk 0:01:14.2]} 27... Rad8 {[%clk
0:01:06.7]} 28. Rxd7 {[%clk 0:01:12.8]} 28... Rxd7 {[%clk 0:01:06.7]} 29. Rd1
{[%clk 0:01:12.6]} 29... Bf8 {[%clk 0:01:06.1]} 30. Rxd7 {[%clk 0:01:06.4]}
30... Qxd7 {[%clk 0:01:05.7]} 31. g4 {[%clk 0:00:54.8]} 31... Bc5 {[%clk
0:01:05]} 32. Kh2 {[%clk 0:00:54.7]} 32... Nf4 {[%clk 0:01:03.6]} 33. Nf5 {[%clk
0:00:47.4]} 33... c6 {[%clk 0:00:47.9]} 34. Nxh6+ {[%clk 0:00:39.2]} 34... Kf8
{[%clk 0:00:45]} 35. Nf5 {[%clk 0:00:39.2]} 35... b5 {[%clk 0:00:38.7]} 36. b3
{[%clk 0:00:37.3]} 36... Qd3 {[%clk 0:00:34.2]} 37. Qxd3 {[%clk 0:00:36.3]}
37... Nxd3 {[%clk 0:00:34.5]} 38. Nd2 {[%clk 0:00:33]} 38... bxa4 {[%clk
0:00:32.1]} 39. bxa4 {[%clk 0:00:32.8]} 39... Nb2 {[%clk 0:00:32.5]} 40. Nb3
{[%clk 0:00:29.3]} 40... Nxa4 {[%clk 0:00:32.4]} 41. Nxa5 {[%clk 0:00:27.4]}
41... Nxc3 {[%clk 0:00:30.4]} 42. Nxc6 {[%clk 0:00:27.7]} 42... f6 {[%clk
0:00:15.5]} 43. Kg3 {[%clk 0:00:23.4]} 43... Nxe4+ {[%clk 0:00:15.3]} 44. Kf3
{[%clk 0:00:23.9]} 44... Nd6 {[%clk 0:00:14]} 45. Nxd6 {[%clk 0:00:23]} 45...
Bxd6 {[%clk 0:00:14.5]} 46. Ke4 {[%clk 0:00:22.9]} 46... Kf7 {[%clk 0:00:13]}
47. Kf5 {[%clk 0:00:21.6]} 47... Bc5 {[%clk 0:00:11.7]} 48. Na5 {[%clk 0:00:21]}
48... e4 {[%clk 0:00:09.6]} 49. Kxe4 {[%clk 0:00:20.4]} 49... Bb4 {[%clk
0:00:09.6]} 50. Nc4 {[%clk 0:00:20.7]} 50... Ke6 {[%clk 0:00:08.2]} 51. Ne3
{[%clk 0:00:20.4]} 51... Bc3 {[%clk 0:00:07.8]} 52. Nf5 {[%clk 0:00:21.3]} 52...
Bb2 {[%clk 0:00:07.7]} 53. g3 {[%clk 0:00:22.2]} 53... Ba1 {[%clk 0:00:06.9]}
54. h4 {[%clk 0:00:23.1]} 54... gxh4 {[%clk 0:00:06.4]} 55. gxh4 {[%clk
0:00:23]} 55... Kf7 {[%clk 0:00:06.5]} 56. h5 {[%clk 0:00:23.3]} 56... Bb2
{[%clk 0:00:06.2]} 57. Kd5 {[%clk 0:00:23.6]} 57... Bc1 {[%clk 0:00:05]} 58.
Nd6+ {[%clk 0:00:23.3]} 58... Kg7 {[%clk 0:00:04.7]} 59. Ke6 {[%clk 0:00:23.6]}
59... Bd2 {[%clk 0:00:03.3]} 60. Ne8+ {[%clk 0:00:23.1]} 60... Kh6 {[%clk
0:00:03.1]} 61. Kf5 {[%clk 0:00:23.5]} 61... Bc3 {[%clk 0:00:02.1]} 62. Nxf6
{[%clk 0:00:24.4]} 62... Bb2 {[%clk 0:00:02.3]} 63. g5+ {[%clk 0:00:24.5]} 63...
Kg7 {[%clk 0:00:02.4]} 64. h6+ {[%clk 0:00:24.9]} 64... Kh8 {[%clk 0:00:02.7]}
65. g6 {[%clk 0:00:24.3]} 1-0